fUST/lending_fUST_20250609
["ID","MTS","AMOUNT","RATE_DAILY","PERIOD"]
[365059740,1749433843134,-151.0,0.00024,7]
[365059741,1749433843143,-415.726429,0.00024,7]
[365059742,1749433843153,-415.726429,0.00024,7]
[365059743,1749433843163,-151.0,0.00024,7]
[365059744,1749433843173,-151.0,0.00024,7]
[365059745,1749433843183,-887.719557,0.00024,2]
[365059746,1749433843194,-887.719557,0.00024,2]
[365059747,1749433843204,-160.0,0.00024,7]
[365059748,1749433843215,-151.0,0.00024,7]
[365059749,1749433843226,-151.0,0.00024,7]
[365059750,1749433843235,-166.430729,0.00024,7]
[365059751,1749433843246,-154.786526,0.00024,7]
[365059752,1749433843256,-166.430729,0.00024,7]
[365059753,1749433843265,-151.0,0.00024,7]
[365059754,1749433843275,-151.0,0.00024,7]
[365059755,1749433843285,-154.043439,0.00024,7]
[365059756,1749433843294,-799.86,0.00024007,2]
[365059757,1749433843304,-250.0,0.00024018,2]
[365059758,1749433843313,-151.0,0.00024027,7]
[365059759,1749433843323,-530.58,0.00024052,10]
[365059760,1749433843332,-3916.02,0.00024052,10]
[365059761,1749433843342,-1100.0,0.00024053,2]
[365059762,1749433843351,-151.0,0.00024062,7]
[365059763,1749433843361,-151.0,0.00024062,7]
[365059764,1749433843371,-151.0,0.00024062,7]
[365059765,1749433843383,-415.726429,0.00024062,7]
[365059766,1749433843392,-415.726429,0.00024062,7]
[365059767,1749433843408,-151.0,0.00024062,7]
[365059768,1749433843426,-164.157752,0.00024062,7]
[365059769,1749433843441,-887.719557,0.00024062,2]
[365059770,1749433843457,-887.719557,0.00024062,2]
[365059771,1749433843470,-151.0,0.00024062,7]
[365059772,1749433843483,-151.0,0.00024062,7]
[365059773,1749433843498,-166.430729,0.00024062,7]
[365059774,1749433843512,-166.430729,0.00024062,7]
[365059775,1749433843526,-159.622501,0.00024062,7]
[365059776,1749433843540,-151.0,0.00024062,7]
[365059777,1749433843557,-133325.44129973,0.00024062,7]
[365059778,1749433843571,-293.32388536,0.00024064,7]
[365059779,1749433843585,-600.0,0.0002407,2]
[365059780,1749433843599,-980.52620459,0.00024072,10]
[365059781,1749433843613,-452.0,0.00024079,2]
[365059782,1749433843625,-799.86,0.00024107,4]
[365059783,1749433843639,-777.23,0.00024109,4]
[365059784,1749433843651,-2158.63,0.00024109,4]
[365059785,1749433843665,-725.5,0.00024109,4]
[365059786,1749433843679,-896.05,0.00024109,4]
[365059787,1749433843691,-1045.86,0.00024109,4]
[365059788,1749433843704,-786.57,0.00024109,4]
[365059789,1749433843716,-1327.94,0.00024109,4]
[365059790,1749433843727,-2348.17,0.00024109,4]
[365059791,1749433843741,-521.03,0.00024109,4]
[365059792,1749433843755,-505.45523362,0.00024109,2]
[365059793,1749433843768,-1218.96,0.00024109,4]
[365059794,1749433843781,-1889.67,0.00024109,4]
[365059795,1749433843794,-1691.78,0.00024109,4]
[365059796,1749433843808,-850.95,0.00024109,4]
[365059797,1749433843822,-440.0,0.00024109,4]
[365059798,1749433843837,-892.33,0.00024109,4]
[365059799,1749433843853,-903.2,0.00024109,4]
[365059800,1749433843868,-4866.0,0.00024124,7]
[365059801,1749433843881,-452.0,0.00024144,2]
[365059802,1749433843893,-452.0,0.00024161,2]
[365059803,1749433843904,-162.21587453,0.00024164,2]
[365059804,1749433843916,-212.0,0.0002417,10]
[365059805,1749433843930,-452.0,0.00024196,2]
[365059806,1749433843945,-5777.0,0.000242,120]
[365059807,1749433843957,-151.0,0.000242,7]
[365059808,1749433843970,-1800.0,0.000242,2]
[365059809,1749433843981,-799.86,0.00024207,6]
[365059810,1749433843992,-980.52620459,0.0002421,10]
[365059811,1749433844005,-215.0738,0.00024253,2]
[365059812,1749433844019,-1500.0,0.00024268,2]
[365059813,1749433844031,-1009.49702705,0.00024268,2]
[365059814,1749433844042,-1449.14693141,0.00024299,2]
[365059815,1749433844054,-229.60437222,0.000243,3]
[365059816,1749433844065,-423.98131849,0.000243,3]
[365059817,1749433844077,-58512.06,0.000243,7]
[365059818,1749433844088,-1000.0,0.000243,2]
[365059819,1749433844101,-800.0,0.00024306,2]
[365059820,1749433844113,-799.86,0.00024307,4]
[365059821,1749433844124,-600.0,0.00024315,2]
[365059822,1749433844135,-1449.14693141,0.00024317,2]
[365059823,1749433844147,-800.0,0.00024327,2]
[365059824,1749433844158,-162.21587453,0.00024329,2]
[365059825,1749433844170,-1449.14693141,0.00024334,2]
[365059826,1749433844182,-980.52620459,0.00024348,11]
[365059827,1749433844194,-1449.14693141,0.00024352,2]
[365059828,1749433844205,-3647.0,0.00024368,2]
[365059829,1749433844218,-152.977418,0.00024368,7]
[365059830,1749433844231,-1449.14693141,0.00024369,2]
[365059831,1749433844243,-151.0,0.00024383,7]
[365059832,1749433844256,-166.998741,0.00024383,7]
[365059833,1749433844269,-166.190911,0.00024383,7]
[365059834,1749433844282,-166.190911,0.00024383,7]
[365059835,1749433844294,-151.0,0.00024383,7]
[365059836,1749433844307,-151.0,0.00024383,7]
[365059837,1749433844319,-214.154465,0.00024383,7]
[365059838,1749433844333,-214.154465,0.00024383,7]
[365059839,1749433844344,-151.0,0.00024383,7]
[365059840,1749433844357,-151.0,0.00024383,7]
[365059841,1749433844369,-151.0,0.00024383,7]
[365059842,1749433844382,-777.23,0.00024383,4]
[365059843,1749433844396,-2158.63,0.00024383,4]
[365059844,1749433844408,-725.5,0.00024383,4]
[365059845,1749433844420,-896.05,0.00024383,4]
[365059846,1749433844433,-1045.86,0.00024383,4]
[365059847,1749433844445,-786.57,0.00024383,4]
[365059848,1749433844457,-1327.94,0.00024383,4]
[365059849,1749433844470,-2348.17,0.00024383,4]
[365059850,1749433844483,-151.0,0.00024383,7]
[365059851,1749433844496,-288.705269,0.00024383,7]
[365059852,1749433844510,-521.03,0.00024383,4]
[365059853,1749433844522,-166.430729,0.00024383,7]
[365059854,1749433844534,-166.430729,0.00024383,7]
[365059855,1749433844547,-1218.96,0.00024383,4]
[365059856,1749433844562,-1889.67,0.00024383,4]
[365059857,1749433844575,-1691.78,0.00024383,4]
[365059858,1749433844587,-850.95,0.00024383,4]
[365059859,1749433844600,-440.0,0.00024383,4]
[365059860,1749433844611,-892.33,0.00024383,4]
[365059861,1749433844621,-903.2,0.00024383,4]
[365059862,1749433844632,-151.0,0.00024383,7]
[365059863,1749433844642,-1449.14693141,0.00024387,2]
[365059864,1749433844652,-134649.22673212,0.00024399,3]
[365059865,1749433844662,-151.0,0.00024399,7]
[365059866,1749433844672,-151.0,0.00024399,7]
[365059867,1749433844682,-152.886666,0.00024399,7]
[365059868,1749433844691,-166.190911,0.00024399,7]
[365059869,1749433844701,-166.190911,0.00024399,7]
[365059870,1749433844710,-151.0,0.00024399,7]
[365059871,1749433844720,-151.0,0.00024399,7]
[365059872,1749433844898,-214.154465,0.00024399,7]
[365059873,1749433844922,-214.154465,0.00024399,7]
[365059874,1749433844932,-151.0,0.00024399,7]
[365059875,1749433844942,-153.463255,0.00024399,7]
[365059876,1749433844951,-151.0,0.00024399,7]
[365059877,1749433844961,-151.0,0.00024399,7]
[365059878,1749433844971,-239.053506,0.00024399,7]
[365059879,1749433844981,-151.0,0.00024399,7]
[365059880,1749433844990,-415.726429,0.00024399,7]
[365059881,1749433845000,-415.726429,0.00024399,7]
[365059882,1749433845011,-151.0,0.00024399,7]
[365059883,1749433845021,-887.719557,0.00024399,2]
[365059884,1749433845030,-887.719557,0.00024399,2]
[365059885,1749433845040,-151.0,0.00024399,7]
[365059886,1749433845049,-166.430729,0.00024399,7]
[365059887,1749433845059,-166.430729,0.00024399,7]
[365059888,1749433845068,-179.334247,0.00024399,7]
[365059889,1749433845077,-2564.06,0.000244,2]
[365059890,1749433845087,-834.62475315,0.000244,3]
[365059891,1749433845096,-160.0,0.000244,3]
[365059892,1749433845107,-157.844069,0.000244,15]
[365059893,1749433845116,-1449.14693141,0.00024404,2]
[365059894,1749433845126,-799.86,0.00024407,4]
[365059895,1749433845135,-3647.0,0.00024419,2]
[365059896,1749433845145,-1874.0,0.00024422,2]
[365059897,1749433845155,-1449.14693141,0.00024422,2]
[365059898,1749433845165,-800.0,0.00024433,2]
[365059899,1749433845174,-1449.14693141,0.00024439,2]
[365059900,1749433845184,-151.0,0.00024453,7]
[365059901,1749433845193,-151.0,0.00024453,7]
[365059902,1749433845203,-415.726429,0.00024453,7]
[365059903,1749433845213,-415.726429,0.00024453,7]
[365059904,1749433845223,-39581.44571299,0.00024457,2]
[365059905,1749433845243,-5558.05331439,0.00024457,2]
[365059907,1749433845434,-440.0,0.0002,2]
[365059908,1749433845444,-440.0,0.00020273,2]
[365059909,1749433845454,-440.0,0.00020547,2]
[365059910,1749433845463,-205.95389307,0.00020821,2]
[365059912,1749433845483,-234.04610693,0.00020821,2]
[365059913,1749433845492,-440.0,0.00021095,2]
[365059914,1749433845502,-440.0,0.00021369,2]
[365059915,1749433845513,-440.0,0.00021643,2]
[365059916,1749433845522,-500.0,0.00022464,2]
[365059917,1749433845532,-423.97069994,0.00022464,2]
[365059918,1749433845541,-500.0,0.00022464,2]
[365059919,1749433845552,-500.0,0.00022464,2]
[365059920,1749433845562,-500.0,0.00022464,2]
[365059921,1749433845571,-500.0,0.00022464,2]
[365059922,1749433845580,-5187.5309967,0.00024457,2]
[365059923,1749433845590,-776.05974269,0.00024457,2]
[365059924,1749433845602,-276.04537841,0.00024457,2]
[365059925,1749433845614,-121357.8798604,0.00024457,2]
[365059926,1749433845834,-316.03822774,0.000219,2]
[365059934,1749433940524,3668.21,0.00016,30]
[365059935,1749433982107,500.0,0.00024567,120]
[365059936,1749434018236,184.401623,0.00013699,2]
[365059942,1749434745230,151.79,0.00017368,2]
[365059943,1749434752010,282.979663,0.00024567,120]
[365059944,1749434828259,150.0,0.00017365,2]
[365059945,1749434910360,150.0,0.00017432,2]
[365059946,1749434990229,150.0,0.00017362,2]
[365059967,1749435031875,-1753.5041447,0.00018091,2]
[365059968,1749435031885,-300.0,0.00018099,2]
[365059969,1749435031895,-300.0,0.00018099,2]
[365059971,1749435031906,-901.06999123,0.000181,2]
[365059973,1749435031918,-15532.93000877,0.000181,2]
[365059974,1749435031927,-197.3132701,0.00018175,2]
[365059975,1749435031938,-292.09,0.00018189,2]
[365059976,1749435031950,-1000.0,0.000188,2]
[365059977,1749435031960,-438.13,0.00019015,2]
[365059978,1749435031970,-194.18780731,0.00019078,2]
[365059980,1749435031980,-155.45774949,0.00019078,2]
[365059982,1749435031989,-217.91736019,0.00019177,2]
[365059983,1749435031998,-500.0,0.00019177,2]
[365059985,1749435032010,-500.0,0.00019177,2]
[365059986,1749435032022,-500.0,0.00019177,2]
[365059987,1749435032032,-500.0,0.00019177,2]
[365059988,1749435032042,-570.40801935,0.00019177,2]
[365059989,1749435032052,-500.0,0.00019177,2]
[365059990,1749435032062,-500.0,0.00019177,2]
[365059991,1749435032071,-432.49288038,0.00019178,2]
[365059992,1749435032082,-443.50106725,0.00019178,2]
[365059993,1749435032092,-406.34230883,0.00019178,2]
[365059994,1749435032101,-440.27187612,0.00019178,2]
[365059995,1749435032110,-431.28076695,0.00019178,2]
[365059996,1749435032120,-431.38407301,0.00019178,2]
[365059997,1749435032130,-436.04071414,0.00019178,2]
[365059998,1749435032140,-441.78751313,0.00019178,2]
[365059999,1749435032150,-450.40547425,0.00019178,2]
[365060000,1749435032160,-464.03760633,0.00019178,2]
[365060001,1749435032170,-434.27279877,0.00019178,2]
[365060002,1749435032180,-459.81816074,0.00019178,2]
[365060003,1749435032190,-430.74433667,0.00019178,2]
[365060004,1749435032200,-437.61435198,0.00019178,2]
[365060005,1749435032209,-441.23011071,0.00019178,2]
[365060006,1749435032219,-440.0,0.00019178,2]
[365060007,1749435032229,-446.76734972,0.00019178,2]
[365060008,1749435032238,-431.96261174,0.00019178,2]
[365060009,1749435032249,-440.0,0.00019178,2]
[365060010,1749435032258,-440.0,0.00019178,2]
[365060011,1749435032268,-423.27311692,0.00019178,2]
[365060012,1749435032278,-451.03728604,0.00019178,2]
[365060013,1749435032288,-450.41464269,0.00019178,2]
[365060014,1749435032298,-450.09926863,0.00019178,2]
[365060015,1749435032308,-387.2849571,0.00019178,2]
[365060016,1749435032318,-464.99207003,0.00019178,2]
[365060017,1749435032327,-468.12459722,0.00019178,2]
[365060018,1749435032337,-460.2315711,0.00019178,2]
[365060019,1749435032347,-519.94156895,0.00019178,2]
[365060020,1749435032358,-325.83007238,0.00019178,2]
[365060021,1749435032368,-465.32023658,0.00019178,2]
[365060022,1749435032378,-440.0,0.00019178,2]
[365060023,1749435032389,-458.24217501,0.00019178,2]
[365060024,1749435032399,-440.0,0.00019178,2]
[365060025,1749435032410,-453.10366156,0.00019178,2]
[365060026,1749435032420,-469.97236725,0.00019178,2]
[365060027,1749435032430,-443.2637463,0.00019178,2]
[365060028,1749435032441,-457.98451978,0.00019178,2]
[365060029,1749435032450,-464.9374273,0.00019178,2]
[365060030,1749435032460,-455.21592481,0.00019178,2]
[365060031,1749435032470,-458.07559812,0.00019178,2]
[365060032,1749435032480,-434.75566568,0.00019178,2]
[365060033,1749435032491,-457.37669181,0.00019178,2]
[365060034,1749435032503,-454.32981949,0.00019178,2]
[365060035,1749435032514,-579.69399596,0.00019178,2]
[365060036,1749435032525,-450.30129103,0.00019178,2]
[365060037,1749435032534,-402.21766101,0.00019178,2]
[365060038,1749435032544,-459.45063038,0.00019178,2]
[365060039,1749435032554,-410.23133699,0.00019178,2]
[365060040,1749435032564,-402.47382645,0.00019178,2]
[365060041,1749435032574,-468.51089717,0.00019178,2]
[365060042,1749435032584,-440.0,0.00019178,2]
[365060043,1749435032594,-451.08644469,0.00019178,2]
[365060044,1749435032603,-451.98576184,0.00019178,2]
[365060045,1749435032613,-467.223785,0.00019178,2]
[365060046,1749435032624,-565.75904122,0.00019178,2]
[365060047,1749435032634,-451.63469075,0.00019178,2]
[365060048,1749435032644,-440.0,0.00019178,2]
[365060049,1749435032654,-440.0,0.00019178,2]
[365060050,1749435032664,-420.0,0.00019178,2]
[365060051,1749435032675,-462.94733806,0.00019178,2]
[365060052,1749435032685,-519.92558023,0.00019178,2]
[365060053,1749435032695,-434.46367905,0.00019178,2]
[365060054,1749435032705,-433.54861782,0.00019178,2]
[365060055,1749435032715,-440.0,0.00019178,2]
[365060056,1749435032724,-440.0,0.00019178,2]
[365060057,1749435032734,-440.0,0.00019178,2]
[365060058,1749435032743,-440.0,0.00019178,2]
[365060059,1749435032753,-440.0,0.00019178,2]
[365060060,1749435032764,-430.81288588,0.00019178,2]
[365060061,1749435032773,-440.0,0.00019178,2]
[365060062,1749435032783,-160.09316395,0.00019178,2]
[365060063,1749435032793,-504.34416246,0.00019178,2]
[365060064,1749435032803,-460.97781726,0.00019178,2]
[365060065,1749435032812,-440.0,0.00019178,2]
[365060066,1749435032821,-451.18365986,0.00019178,2]
[365060067,1749435032832,-440.0,0.00019178,2]
[365060068,1749435032843,-440.0,0.00019178,2]
[365060069,1749435032853,-440.0,0.00019178,2]
[365060070,1749435032863,-440.0,0.00019178,2]
[365060071,1749435032872,-440.0,0.00019178,2]
[365060072,1749435032882,-440.0,0.00019178,2]
[365060073,1749435032891,-440.0,0.00019178,2]
[365060074,1749435032902,-400.89920314,0.00019178,2]
[365060075,1749435032912,-451.17940527,0.00019178,2]
[365060076,1749435032923,-420.91525479,0.00019178,2]
[365060077,1749435032933,-440.0,0.00019178,2]
[365060078,1749435032946,-440.0,0.00019178,2]
[365060079,1749435032956,-411.22268283,0.00019178,2]
[365060080,1749435032965,-400.77627579,0.00019178,2]
[365060081,1749435032975,-440.0,0.00019178,2]
[365060082,1749435032985,-209.49543788,0.00019178,2]
[365060083,1749435032995,-440.0,0.00019178,2]
[365060084,1749435033005,-460.20531571,0.00019178,2]
[365060085,1749435033016,-501.61845266,0.00019178,2]
[365060086,1749435033026,-401.3122174,0.00019178,2]
[365060087,1749435033036,-433.83227665,0.00019178,2]
[365060088,1749435033046,-440.0,0.00019178,2]
[365060089,1749435033056,-430.6210469,0.00019178,2]
[365060090,1749435033066,-440.0,0.00019178,2]
[365060091,1749435033076,-440.0,0.00019178,2]
[365060092,1749435033086,-440.0,0.00019178,2]
[365060093,1749435033097,-440.0,0.00019178,2]
[365060094,1749435033107,-440.0,0.00019178,2]
[365060095,1749435033117,-440.0,0.00019178,2]
[365060096,1749435033127,-447.8115728,0.00019178,2]
[365060097,1749435033137,-440.0,0.00019178,2]
[365060098,1749435033147,-440.0,0.00019178,2]
[365060099,1749435033157,-440.0,0.00019178,2]
[365060100,1749435033294,-451.6806596,0.00019178,2]
[365060101,1749435033316,-469.38175458,0.00019178,2]
[365060102,1749435033327,-440.0,0.00019178,2]
[365060103,1749435033337,-440.0,0.00019178,2]
[365060104,1749435033349,-440.0,0.00019178,2]
[365060105,1749435033359,-440.0,0.00019178,2]
[365060106,1749435033368,-440.0,0.00019178,2]
[365060107,1749435033386,-440.0,0.00019178,2]
[365060108,1749435033396,-444.83005117,0.00019178,2]
[365060109,1749435033406,-416.46225772,0.00019178,2]
[365060110,1749435033416,-411.60536118,0.00019178,2]
[365060111,1749435033426,-456.44566946,0.00019178,2]
[365060112,1749435033436,-440.0,0.00019178,2]
[365060113,1749435033446,-446.20317163,0.00019178,2]
[365060114,1749435033455,-440.0,0.00019178,2]
[365060115,1749435033465,-447.19437444,0.00019178,2]
[365060116,1749435033475,-440.0,0.00019178,2]
[365060117,1749435033484,-452.07239791,0.00019178,2]
[365060118,1749435033495,-440.0,0.00019178,2]
[365060119,1749435033505,-440.0,0.00019178,2]
[365060120,1749435033515,-400.79080564,0.00019178,2]
[365060121,1749435033524,-436.93742698,0.00019178,2]
[365060122,1749435033535,-440.0,0.00019178,2]
[365060123,1749435033545,-440.0,0.00019178,2]
[365060124,1749435033555,-400.56252339,0.00019178,2]
[365060125,1749435033565,-440.0,0.00019178,2]
[365060126,1749435033574,-440.0,0.00019178,2]
[365060127,1749435033584,-440.0,0.00019178,2]
[365060128,1749435033594,-471.92302248,0.00019178,2]
[365060129,1749435033604,-440.0,0.00019178,2]
[365060130,1749435033614,-500.0,0.00019178,2]
[365060131,1749435033624,-500.0,0.00019178,2]
[365060132,1749435033634,-500.0,0.00019178,2]
[365060133,1749435033645,-500.0,0.00019178,2]
[365060134,1749435033655,-322.84836834,0.00019178,2]
[365060135,1749435033665,-403.75053481,0.00019178,2]
[365060136,1749435033675,-440.0,0.00019178,2]
[365060137,1749435033687,-402.25710202,0.00019178,2]
[365060138,1749435033697,-440.0,0.00019178,2]
[365060139,1749435033707,-432.77632321,0.00019178,2]
[365060140,1749435033717,-409.00981748,0.00019178,2]
[365060141,1749435033727,-440.0,0.00019178,2]
[365060142,1749435033737,-440.0,0.00019178,2]
[365060143,1749435033747,-439.05289714,0.00019178,2]
[365060144,1749435033757,-453.81146938,0.00019178,2]
[365060145,1749435033766,-401.66985344,0.00019178,2]
[365060146,1749435033776,-440.0,0.00019178,2]
[365060147,1749435033786,-440.0,0.00019178,2]
[365060148,1749435033797,-440.0,0.00019178,2]
[365060149,1749435033811,-401.54542201,0.00019178,2]
[365060150,1749435033821,-413.4168469,0.00019178,2]
[365060151,1749435033830,-239.971559,0.00019178,2]
[365060152,1749435033840,-440.0,0.00019178,2]
[365060153,1749435033850,-461.35807844,0.00019178,2]
[365060154,1749435033860,-440.0,0.00019178,2]
[365060155,1749435033870,-400.90046835,0.00019178,2]
[365060156,1749435033880,-448.19903023,0.00019178,2]
[365060157,1749435033889,-438.34697726,0.00019178,2]
[365060158,1749435033900,-440.0,0.00019178,2]
[365060159,1749435033909,-402.11016917,0.00019178,2]
[365060160,1749435033919,-440.0,0.00019178,2]
[365060161,1749435033928,-440.0,0.00019178,2]
[365060162,1749435033941,-469.47308848,0.00019178,2]
[365060163,1749435033950,-447.70673359,0.00019178,2]
[365060164,1749435033960,-400.70919011,0.00019178,2]
[365060165,1749435033970,-472.43780122,0.00019178,2]
[365060166,1749435033981,-456.19623087,0.00019178,2]
[365060167,1749435033991,-432.12703864,0.00019178,2]
[365060168,1749435034000,-474.20815206,0.00019178,2]
[365060169,1749435034010,-447.59730837,0.00019178,2]
[365060170,1749435034019,-421.88394158,0.00019178,2]
[365060171,1749435034030,-407.20778147,0.00019178,2]
[365060172,1749435034040,-440.0,0.00019178,2]
[365060173,1749435034050,-440.0,0.00019178,2]
[365060174,1749435034060,-433.41110569,0.00019178,2]
[365060175,1749435034070,-352.6927029,0.00019178,2]
[365060176,1749435034079,-500.0,0.00019178,2]
[365060177,1749435034089,-457.16012922,0.00019178,2]
[365060178,1749435034101,-500.0,0.00019178,2]
[365060179,1749435034111,-500.0,0.00019178,2]
[365060180,1749435034122,-500.0,0.00019178,2]
[365060181,1749435034132,-500.0,0.00019178,2]
[365060182,1749435034142,-233.60192639,0.00019178,2]
[365060183,1749435034152,-440.0,0.00019178,2]
[365060184,1749435034162,-481.29973853,0.00019178,2]
[365060185,1749435034172,-444.17498485,0.00019178,2]
[365060186,1749435034182,-440.0,0.00019178,2]
[365060187,1749435034192,-460.53091562,0.00019178,2]
[365060188,1749435034201,-409.393436,0.00019178,2]
[365060189,1749435034211,-440.0,0.00019178,2]
[365060190,1749435034221,-457.61088358,0.00019178,2]
[365060191,1749435034231,-556.34274886,0.00019178,2]
[365060192,1749435034241,-454.7994658,0.00019178,2]
[365060193,1749435034250,-440.0,0.00019178,2]
[365060194,1749435034260,-455.78887603,0.00019178,2]
[365060195,1749435034269,-440.0,0.00019178,2]
[365060196,1749435034279,-473.55148288,0.00019178,2]
[365060197,1749435034288,-439.4994058,0.00019178,2]
[365060198,1749435034298,-440.0,0.00019178,2]
[365060199,1749435034307,-440.0,0.00019178,2]
[365060200,1749435034317,-453.16651723,0.00019178,2]
[365060201,1749435034327,-440.0,0.00019178,2]
[365060202,1749435034337,-440.0,0.00019178,2]
[365060203,1749435034347,-437.01477021,0.00019178,2]
[365060204,1749435034357,-440.0,0.00019178,2]
[365060205,1749435034367,-440.0,0.00019178,2]
[365060206,1749435034376,-440.0,0.00019178,2]
[365060207,1749435034386,-440.0,0.00019178,2]
[365060208,1749435034396,-555.09342046,0.00019178,2]
[365060209,1749435034405,-440.0,0.00019178,2]
[365060210,1749435034415,-440.0,0.00019178,2]
[365060211,1749435034424,-440.0,0.00019178,2]
[365060212,1749435034434,-434.10341882,0.00019178,2]
[365060213,1749435034444,-440.0,0.00019178,2]
[365060214,1749435034453,-440.0,0.00019178,2]
[365060215,1749435034463,-452.04655938,0.00019178,2]
[365060216,1749435034473,-440.0,0.00019178,2]
[365060217,1749435034483,-440.0,0.00019178,2]
[365060218,1749435034493,-520.278808,0.00019178,2]
[365060219,1749435034502,-422.06545602,0.00019178,2]
[365060220,1749435034512,-437.52516587,0.00019178,2]
[365060221,1749435034522,-440.0,0.00019178,2]
[365060222,1749435034531,-434.98399089,0.00019178,2]
[365060223,1749435034540,-433.25540779,0.00019178,2]
[365060224,1749435034550,-440.0,0.00019178,2]
[365060225,1749435034560,-401.88057392,0.00019178,2]
[365060226,1749435034570,-440.0,0.00019178,2]
[365060227,1749435034580,-440.0,0.00019178,2]
[365060228,1749435034589,-440.0,0.00019178,2]
[365060229,1749435034600,-439.88794813,0.00019178,2]
[365060230,1749435034609,-403.67298977,0.00019178,2]
[365060231,1749435034619,-440.0,0.00019178,2]
[365060232,1749435034628,-439.37740589,0.00019178,2]
[365060233,1749435034638,-440.0,0.00019178,2]
[365060234,1749435034648,-457.26401161,0.00019178,2]
[365060235,1749435034658,-440.0,0.00019178,2]
[365060236,1749435034668,-440.73880856,0.00019178,2]
[365060237,1749435034678,-440.0,0.00019178,2]
[365060238,1749435034688,-435.20276443,0.00019178,2]
[365060239,1749435034698,-423.74656813,0.00019178,2]
[365060240,1749435034707,-435.78637111,0.00019178,2]
[365060241,1749435034716,-436.40040452,0.00019178,2]
[365060242,1749435034726,-416.61834351,0.00019178,2]
[365060243,1749435034735,-438.96445484,0.00019178,2]
[365060244,1749435034744,-416.60384405,0.00019178,2]
[365060245,1749435034753,-440.0,0.00019178,2]
[365060246,1749435034763,-432.09055761,0.00019178,2]
[365060247,1749435034775,-440.0,0.00019178,2]
[365060248,1749435034784,-440.0,0.00019178,2]
[365060249,1749435034794,-341.38539279,0.00019178,2]
[365060250,1749435034803,-440.0,0.00019178,2]
[365060251,1749435034813,-440.0,0.00019178,2]
[365060252,1749435034822,-434.28557196,0.00019178,2]
[365060253,1749435034834,-440.0,0.00019178,2]
[365060254,1749435034845,-440.0,0.00019178,2]
[365060255,1749435034855,-360.59229845,0.00019178,2]
[365060256,1749435034864,-440.0,0.00019178,2]
[365060257,1749435034874,-440.0,0.00019178,2]
[365060258,1749435034883,-440.0,0.00019178,2]
[365060259,1749435034893,-342.60243054,0.00019178,2]
[365060260,1749435034902,-425.03875315,0.00019178,2]
[365060261,1749435034912,-433.64496344,0.00019178,2]
[365060262,1749435034922,-496.6739939,0.00019178,2]
[365060263,1749435034933,-440.0,0.00019178,2]
[365060264,1749435034946,-322.80584028,0.00019178,2]
[365060265,1749435034957,-412.64491345,0.00019178,2]
[365060266,1749435034967,-440.0,0.00019178,2]
[365060267,1749435034977,-435.97013315,0.00019178,2]
[365060268,1749435034988,-433.12614951,0.00019178,2]
[365060269,1749435034998,-443.885315,0.00019178,2]
[365060270,1749435035007,-440.0,0.00019178,2]
[365060271,1749435035019,-440.0,0.00019178,2]
[365060272,1749435035030,-407.21146262,0.00019178,2]
[365060273,1749435035040,-440.0,0.00019178,2]
[365060274,1749435035049,-448.36070407,0.00019178,2]
[365060275,1749435035058,-303.91897727,0.00019178,2]
[365060276,1749435035068,-440.0,0.00019178,2]
[365060277,1749435035077,-439.30902299,0.00019178,2]
[365060278,1749435035087,-440.0,0.00019178,2]